{"text_format":"1","workbook":"xlsx","n_sheets":2,"sheets":["nevezes","Munka2"],"not_rendered":{"charts":0,"images":3,"macros":1,"external_links":1,"defined_names":4,"comments":0,"pivot_tables":0},"unopened":[],"bounds":{"document_bytes":16777216,"sheet_cells":100000,"rows_first":2000,"rows_last":500,"rows_between":2000,"halvings":0,"cell_chars":16384,"cell_head_chars":4096},"cells_cut":0,"cells_raw":0,"read":"whole","date_system":"1900"}

{"sheet":"nevezes","index":0,"n_rows":40,"n_cols":6,"rows_kept":40,"cut":false,"hidden":false,"merged":[[1,1,1,5],[18,1,18,5],[13,2,13,5],[38,1,38,5],[17,1,17,5],[14,2,14,5],[4,1,4,5],[35,1,36,5]]}
[]
[]
[]
[]
[null,"NEVEZÉSI LAP"]
[]
[]
[]
[null,"Helyszíne:","Székesfehérvár, Csónakázó-tó","         Rendező:","Dragon Aktív Kft."]
[null,"Dátuma:","2022.09.23. (péntek)","         Támogató:","Magyar Sárkányhajó Szövetség"]
[null,"Nevezési határidő: ","2022. 09. 16. 24 óra"]
[]
[]
[null,"Iskola neve:"]
[null,"Csapat név:"]
[]
[]
[null,"A nevezéseket a megfelelő mezőben számmal jelölve kérjük leadni, annak megfelelően, hány"]
[null,"legénységet kíván indítani adott kategóriában."]
[]
[]
[null,null,"Nebuló Open (fiú) Kupa",null,null,"Nebuló Lány Kupa"]
[null,null,"Kisdiák Vegyes Kupa"]
[]
[null,null,"Nevezett legénységek összesen:",null,{"$f":"SUM(E22:E23,B22:B23)","v":0}]
[]
[null,"Nevezés módja:"]
[null,"Hiánytalanul kitöltött excel formátumú táblázat visszaküldése az alábbi címre:",null,null,null,"nyilvantartas@sarkanyhajozas.hu"]
[]
[null,"Képviselő neve:"]
[null,"Címe:"]
[null,"E-mail:"]
[null,"Tel:"]
[]
[]
[null,"      Jó versenyzést kívunk!"]
[]
[]
[null,"Dragon Aktív Kft."]
[null,null,{"$f":"\"Fadd10\"&\"_\"&#REF!&\"_\"&C15","v":{"$error":"#REF!"}}]

{"sheet":"Munka2","index":1,"n_rows":55,"n_cols":26,"rows_kept":55,"cut":false,"hidden":false,"merged":[]}
["Nevezések száma","Csapat neve","Kategória","Verseny neve",null,null,null,null,null,null,null,null,null,null,null,null,null,null,null,null,null,null,"Csapatnév","Egyesület neve","Kategória","Verseny neve"]
[{"$f":"nevezes!$B$22","v":0},{"$f":"[1]nevezes!$C$14","v":"."},"Nebuló Open (fiú) Kupa","17. Székesfehérvári Nebuló Kupa"]
[{"$f":"nevezes!$B$23","v":0},{"$f":"[1]nevezes!$C$14","v":"."},"Kisdiák Vegyes Kupa","17. Székesfehérvári Nebuló Kupa"]
[{"$f":"nevezes!$E$22","v":0},{"$f":"[1]nevezes!$C$14","v":"."},"Nebuló Lány Kupa","17. Székesfehérvári Nebuló Kupa"]
[]
[]
[]
[]
[]
[]
[]
[]
[]
[]
[]
[]
[]
[]
[]
[]
[]
[]
[]
[]
[]
[]
[]
[]
[]
[]
[]
[]
[]
[]
[]
[]
[]
[]
[]
[]
[]
[]
[]
[]
[]
[]
[]
[]
[{"$f":"nevezes!#REF!","v":{"$error":"#REF!"}},{"$f":"nevezes!#REF!&\" \"&nevezes!$C$15","v":{"$error":"#REF!"}},"vegyes","200m",{"$f":"nevezes!$B$2","v":0}]
[{"$f":"nevezes!#REF!","v":{"$error":"#REF!"}},{"$f":"nevezes!#REF!&\" \"&nevezes!$C$15","v":{"$error":"#REF!"}},"női","500m",{"$f":"nevezes!$B$2","v":0}]
[{"$f":"nevezes!#REF!","v":{"$error":"#REF!"}},{"$f":"nevezes!#REF!&\" \"&nevezes!$C$15","v":{"$error":"#REF!"}},"open","500m",{"$f":"nevezes!$B$2","v":0}]
[{"$f":"nevezes!#REF!","v":{"$error":"#REF!"}},{"$f":"nevezes!#REF!&\" \"&nevezes!$C$15","v":{"$error":"#REF!"}},"vegyes","500m",{"$f":"nevezes!$B$2","v":0}]
[{"$f":"nevezes!#REF!","v":{"$error":"#REF!"}},{"$f":"nevezes!#REF!&\" \"&nevezes!$C$15","v":{"$error":"#REF!"}},"női","maraton",{"$f":"nevezes!$B$2","v":0}]
[{"$f":"nevezes!#REF!","v":{"$error":"#REF!"}},{"$f":"nevezes!#REF!&\" \"&nevezes!$C$15","v":{"$error":"#REF!"}},"open","maraton",{"$f":"nevezes!$B$2","v":0}]
[{"$f":"nevezes!#REF!","v":{"$error":"#REF!"}},{"$f":"nevezes!#REF!&\" \"&nevezes!$C$15","v":{"$error":"#REF!"}},"vegyes","maraton",{"$f":"nevezes!$B$2","v":0}]